fUST/lending_fUST_20240726
["ID","MTS","AMOUNT","RATE_DAILY","PERIOD"]
[333252099,1721986240288,-2567.93,0.0001385,2]
[333252101,1721986240297,-664.63,0.0001385,2]
[333252103,1721986240306,-335.92283147,0.0001385,2]
[333252105,1721986240315,-500.0,0.0001385,2]
[333252107,1721986240326,-500.0,0.0001385,2]
[333252109,1721986240335,-500.0,0.0001385,2]
[333252111,1721986240344,-500.0,0.0001385,2]
[333252113,1721986240354,-500.0,0.0001385,2]
[333252115,1721986240363,-500.0,0.0001385,2]
[333252117,1721986240373,-500.0,0.0001385,2]
[333252119,1721986240383,-500.0,0.0001385,2]
[333252121,1721986240393,-500.0,0.0001385,2]
[333252123,1721986240403,-500.0,0.0001385,2]
[333252125,1721986240412,-500.0,0.0001385,2]
[333252127,1721986240421,-500.0,0.0001385,2]
[333252129,1721986240430,-5726.35867378,0.00013851,5]
[333252131,1721986240440,-93019.3067198,0.00013851,2]
[333252133,1721986240449,-141583.04079288,0.00013852,5]
[333252135,1721986240458,-114238.28190934,0.00013852,2]
[333252246,1721986243182,-500.0,0.0001385,2]
[333252247,1721986243192,-1165.375,0.00013852,2]
[333252511,1721987432340,-166.666666,0.00012443,2]
[333252513,1721987432350,-166.666666,0.00012783,2]
[333252515,1721987432360,-166.666666,0.00013122,2]
[333252517,1721987432369,-200.0,0.00013425,2]
[333252519,1721987432379,-166.666666,0.00013461,2]
[333252521,1721987432389,-4493.44910568,0.00013502,2]
[333252523,1721987432398,-367.53930495,0.0001357,2]
[333252525,1721987432408,-150.112233,0.000136,2]
[333252527,1721987432418,-307.0841196,0.000136,2]
[333252529,1721987432427,-2422.9363674,0.00013699,2]
[333252531,1721987432437,-150.112233,0.000137,2]
[333252533,1721987432447,-990.20170863,0.00013742,2]
[333252535,1721987432457,-150.112233,0.000138,2]
[333252537,1721987432466,-150.112233,0.000138,2]
[333252539,1721987432476,-150.112233,0.000138,2]
[333252541,1721987432486,-166.666666,0.000138,2]
[333252543,1721987432496,-500.0,0.0001383,2]
[333252545,1721987432505,-500.0,0.0001383,2]
[333252547,1721987432515,-500.0,0.0001383,2]
[333252549,1721987432525,-500.0,0.0001383,2]
[333252551,1721987432538,-500.0,0.0001383,2]
[333252553,1721987432548,-164.79626247,0.0001383,2]
[333252555,1721987432557,-505.76600272,0.0001383,2]
[333252557,1721987432567,-500.0,0.0001383,2]
[333252559,1721987432578,-500.0,0.0001383,2]
[333252561,1721987432588,-500.0,0.0001383,2]
[333252563,1721987432597,-500.0,0.0001383,2]
[333252565,1721987432608,-500.0,0.0001383,2]
[333252567,1721987432619,-1032.48,0.0001383,2]
[333252569,1721987432629,-504.26672933,0.0001383,2]
[333252571,1721987432639,-1686.25,0.0001383,2]
[333252573,1721987432649,-500.0,0.0001383,2]
[333252575,1721987432658,-500.0,0.0001383,2]
[333252577,1721987432668,-921.54,0.0001383,2]
[333252578,1721987432678,-598.45,0.0001383,2]
[333252580,1721987432687,-508.31926332,0.0001383,2]
[333252582,1721987432697,-5130.75856015,0.0001383,2]
[333252660,1721987442361,-3389.83185106,0.0001373,2]
[333252662,1721987442371,-13181.69141651,0.0001383,2]
[333252665,1721987442392,-69997.62265714,0.0001383,2]
[333252667,1721987442401,-500.0,0.0001383,2]
[333252669,1721987442412,-500.0,0.0001383,2]
[333252671,1721987442422,-967.8,0.0001383,2]
[333252673,1721987442432,-500.0,0.0001383,2]
[333252675,1721987442442,-500.0,0.0001383,2]
[333252677,1721987442452,-500.0,0.0001383,2]
[333252679,1721987442462,-500.0,0.0001383,2]
[333252680,1721987442472,-500.0,0.0001383,2]
[333252682,1721987442482,-500.0,0.0001383,2]
[333252683,1721987442492,-994.79,0.0001383,2]
[333252684,1721987442505,-506.40701166,0.0001383,2]
[333252685,1721987442516,-633.3,0.0001383,2]
[333252687,1721987442525,-500.0,0.0001383,2]
[333252689,1721987442539,-605.80698513,0.0001383,2]
[333252690,1721987442548,-737.48,0.0001383,2]
[333252691,1721987442558,-586.833863,0.0001383,2]
[333252692,1721987442567,-607.08,0.0001383,2]
[333252693,1721987442577,-3024.34,0.0001383,2]
[333252694,1721987442586,-500.0,0.0001383,2]
[333252695,1721987442595,-3583.92,0.0001383,2]
[333252696,1721987442604,-777.62,0.0001383,2]
[333252697,1721987442615,-623.2,0.0001383,2]
[333252698,1721987442625,-500.0,0.0001383,2]
[333252699,1721987442637,-1162.08,0.0001383,2]
[333252700,1721987442649,-1141.69,0.0001383,2]
[333252701,1721987442659,-5976.89,0.0001383,2]
[333252702,1721987442671,-500.0,0.0001383,2]
[333252703,1721987442682,-1192.34,0.0001383,2]
[333252704,1721987442692,-500.0,0.0001383,2]
[333252705,1721987442703,-500.0,0.0001383,2]
[333252706,1721987442715,-929.05,0.0001383,2]
[333252707,1721987442725,-512.18268856,0.0001383,2]
[333252708,1721987442736,-500.0,0.0001383,2]
[333252709,1721987442748,-1021.65,0.0001383,2]
[333252710,1721987442758,-500.0,0.0001383,2]
[333252711,1721987442769,-866.2,0.0001383,2]
[333252712,1721987442779,-500.0,0.0001383,2]
[333252713,1721987442791,-500.0,0.0001383,2]
[333252714,1721987442801,-236.96465992,0.0001383,2]
[333252715,1721987442814,-500.0,0.0001383,2]
[333252717,1721987442824,-567.98,0.0001383,2]
[333252719,1721987442833,-500.0,0.0001383,2]
[333252721,1721987442843,-505.30884357,0.0001383,2]
[333252722,1721987442854,-880.03,0.0001383,2]
[333252725,1721987442863,-500.0,0.0001383,2]
[333252726,1721987442873,-335.92283147,0.0001383,2]
[333252728,1721987442884,-500.0,0.0001383,2]
[333252730,1721987442895,-500.0,0.0001383,2]
[333252732,1721987442906,-500.0,0.0001383,2]
[333252733,1721987442917,-500.0,0.0001383,2]
[333252735,1721987442927,-500.0,0.0001383,2]
[333252737,1721987442948,-500.0,0.0001383,2]
[333252739,1721987442960,-500.0,0.0001383,2]
[333252740,1721987442970,-500.0,0.0001383,2]
[333252741,1721987442980,-500.0,0.0001383,2]
[333252742,1721987442989,-500.0,0.0001383,2]
[333252743,1721987443001,-500.0,0.0001383,2]
[333252744,1721987443014,-500.0,0.00013831,2]
[333252745,1721987443025,-500.0,0.00013831,2]
[333252746,1721987443035,-88310.0726338,0.00013831,2]
[333252747,1721987443045,-141583.04079288,0.00013832,5]
[333252748,1721987443057,-5726.35867378,0.00013832,5]
[333252749,1721987443068,-35998.00928636,0.00013832,2]
[333252801,1721987447999,-500.0,0.0001383,2]
[333252802,1721987448011,-3725.38159834,0.00013832,2]
[333252803,1721987448028,-225206.8270163,0.00013832,2]
[333252804,1721987448039,-500.0,0.00013837,2]
[333252805,1721987448049,-500.0,0.00013838,2]
[333252806,1721987448059,-500.0,0.00013838,2]
[333252807,1721987448068,-500.0,0.00013838,2]
[333252808,1721987448078,-500.0,0.00013838,2]
[333252809,1721987448087,-500.0,0.00013838,2]
[333252810,1721987448097,-2567.93,0.00013839,2]
[333252811,1721987448106,-1329.26,0.00013839,2]
[333252812,1721987448117,-500.0,0.00013839,2]
[333252813,1721987448127,-1058.86,0.00013839,2]
[333252814,1721987448136,-963.09,0.00013839,2]
[333252815,1721987448146,-500.0,0.00013839,2]
[333252816,1721987448156,-7123.51,0.00013839,2]
[333252817,1721987448166,-3124.81,0.00013839,2]
[333252818,1721987448176,-1536.44,0.00013839,2]
[333252819,1721987448186,-698.16,0.00013839,2]
[333252820,1721987448196,-868.86,0.00013839,2]
[333252821,1721987448206,-1868.63,0.00013839,2]
[333252822,1721987448216,-597.62,0.00013839,2]
[333252823,1721987448226,-569.71,0.00013839,2]
[333252824,1721987448235,-500.0,0.00013839,2]
[333252825,1721987448244,-900.51,0.00013839,2]
[333252826,1721987448256,-500.0,0.00013839,2]
[333252827,1721987448265,-500.0,0.00013839,2]
[333252828,1721987448274,-1309.55,0.00013839,2]
[333252829,1721987448284,-500.0,0.00013839,2]
[333252830,1721987448294,-285.11325235,0.0001384,2]
[333252831,1721987448304,-500.0,0.0001384,2]
[333252832,1721987448313,-1108.05,0.0001384,2]
[333252833,1721987448323,-500.0,0.0001384,2]
[333252834,1721987448332,-500.0,0.0001384,2]
[333252835,1721987448343,-500.0,0.0001384,2]
[333252836,1721987448352,-500.0,0.0001384,2]
[333252837,1721987448362,-500.0,0.0001384,2]
[333252838,1721987448372,-500.0,0.0001384,2]
[333252839,1721987448382,-500.0,0.0001384,2]
[333252840,1721987448392,-635.04130408,0.0001384,2]
[333252841,1721987448401,-704.05,0.0001384,2]
[333252842,1721987448411,-799.26,0.0001384,2]
[333252843,1721987448421,-500.0,0.0001384,2]
[333252844,1721987448430,-500.0,0.0001384,2]
[333252845,1721987448441,-500.0,0.0001384,2]
[333252846,1721987448451,-500.0,0.0001384,2]
[333252847,1721987448461,-566.23,0.0001384,2]
[333252848,1721987448470,-500.0,0.0001384,2]
[333252849,1721987448480,-679.45,0.0001384,2]
[333252850,1721987448490,-500.0,0.0001384,2]
[333252851,1721987448501,-1167.37,0.0001384,2]
[333252852,1721987448511,-500.0,0.0001384,2]
[333252854,1721987448521,-500.0,0.0001384,2]
[333252856,1721987448531,-502.5900231,0.0001384,2]
[333252858,1721987448545,-500.0,0.0001384,2]
[333252859,1721987448555,-433.38799302,0.0001384,2]
[333252861,1721987448564,-500.0,0.0001384,2]
[333252862,1721987448574,-500.0,0.0001384,2]
[333252866,1721987448785,-500.0,0.0001384,2]
[333252867,1721987448810,-500.0,0.0001384,2]
[333252868,1721987448820,-896.48,0.0001384,2]
[333252869,1721987448830,-780.57,0.0001384,2]
[333252870,1721987448839,-500.0,0.0001384,2]
[333252871,1721987448850,-500.0,0.0001384,2]
[333252872,1721987448860,-500.0,0.0001384,2]
[333252873,1721987448870,-1179.76,0.0001384,2]
[333252874,1721987448881,-500.0,0.0001384,2]
[333252875,1721987448891,-520.34,0.0001384,2]
[333252876,1721987448901,-500.0,0.0001384,2]
[333252877,1721987448913,-500.0,0.0001384,2]
[333252878,1721987448924,-500.0,0.0001384,2]
[333252879,1721987448934,-507.66272438,0.0001384,2]
[333252880,1721987448944,-738.27,0.0001384,2]
[333252881,1721987448954,-746.78,0.0001384,2]
[333252882,1721987448964,-501.5015202,0.0001384,2]
[333252883,1721987448974,-500.0,0.0001384,2]
[333252884,1721987448985,-500.0,0.0001384,2]
[333252885,1721987448995,-609.73,0.0001384,2]
[333252886,1721987449007,-500.0,0.0001384,2]
[333252887,1721987449018,-700.99,0.0001384,2]
[333252888,1721987449028,-500.0,0.0001384,2]
[333252889,1721987449038,-500.0,0.0001384,2]
[333252890,1721987449048,-1300.1,0.0001384,2]
[333252891,1721987449057,-1890.19,0.0001384,2]
[333252892,1721987449067,-5809.86,0.0001384,2]
[333252893,1721987449076,-500.0,0.0001384,2]
[333252894,1721987449086,-500.0,0.0001384,2]
[333252895,1721987449096,-500.0,0.0001384,2]
[333252896,1721987449106,-500.0,0.0001384,2]
[333252897,1721987449116,-500.0,0.0001384,2]
[333252898,1721987449126,-500.0,0.0001384,2]
[333252899,1721987449136,-566.86,0.0001384,2]
[333252900,1721987449147,-500.0,0.0001384,2]
[333252901,1721987449158,-195.27213819,0.0001384,2]
[333252902,1721987449169,-593.97,0.0001384,2]
[333252903,1721987449179,-500.0,0.0001384,2]
[333252904,1721987449189,-500.0,0.0001384,2]
[333252905,1721987449200,-501.23,0.0001384,2]
[333252906,1721987449210,-500.0,0.0001384,2]
[333252907,1721987449220,-1001.14,0.0001384,2]
[333252908,1721987449230,-2023.44,0.0001384,2]
[333252909,1721987449240,-500.0,0.0001384,2]
[333252910,1721987449249,-500.0,0.0001384,2]
[333252911,1721987449262,-221.2636105,0.0001384,2]
[333252912,1721987449271,-1101.57,0.0001384,2]
[333252913,1721987449282,-1638.17,0.0001384,2]
[333252914,1721987449291,-1118.32,0.0001384,2]
[333252915,1721987449300,-500.0,0.0001384,2]
[333252916,1721987449311,-500.0,0.0001384,2]
[333252917,1721987449321,-151.0,0.0001384,2]
[333252918,1721987449331,-151.0,0.0001384,2]
[333252919,1721987449340,-500.0,0.0001384,2]
[333252920,1721987449350,-500.0,0.0001384,2]
[333252921,1721987449360,-500.0,0.0001384,2]
[333252922,1721987449369,-985.32,0.0001384,2]
[333252923,1721987449379,-500.0,0.0001384,2]
[333252924,1721987449390,-500.0,0.0001384,2]
[333252925,1721987449401,-500.0,0.0001384,2]
[333252926,1721987449411,-561.74515541,0.0001384,2]
[333252927,1721987449421,-989.7,0.0001384,2]
[333252928,1721987449430,-151.0,0.0001384,2]
[333252929,1721987449441,-500.0,0.0001384,2]
[333252930,1721987449450,-151.0,0.00013841,2]
[333252931,1721987449460,-151.0,0.00013841,2]
[333252932,1721987449469,-151.0,0.00013841,2]
[333252933,1721987449479,-315.23908,0.00013841,2]
[333252934,1721987449490,-151.0,0.00013841,2]
[333252935,1721987449501,-315.23908,0.00013841,2]
[333252936,1721987449512,-151.0,0.00013841,2]
[333252937,1721987449522,-151.0,0.00013841,2]
[333252938,1721987449532,-151.0,0.00013841,2]
[333252939,1721987449546,-151.0,0.00013841,2]
[333252940,1721987449557,-151.0,0.00013841,2]
[333252941,1721987449567,-151.0,0.00013841,2]
[333252942,1721987449578,-151.0,0.00013841,2]
[333252943,1721987449589,-500.0,0.00013841,2]
[333252944,1721987449599,-500.0,0.00013841,2]
[333252945,1721987449610,-500.0,0.00013841,2]
[333252946,1721987449621,-500.0,0.00013841,2]
[333252947,1721987449631,-500.0,0.00013841,2]
[333252948,1721987449641,-151.0,0.00013842,2]
[333252949,1721987449651,-151.436644,0.00013842,2]
[333252950,1721987449661,-151.0,0.00013842,2]
[333252951,1721987449671,-151.0,0.00013842,2]
[333252952,1721987449682,-151.0,0.00013842,2]
[333252953,1721987449691,-151.0,0.00013842,2]
[333252954,1721987449702,-315.23908,0.00013842,2]
[333252955,1721987449712,-151.0,0.00013842,2]
[333252956,1721987449723,-315.23908,0.00013842,2]
[333252957,1721987449733,-151.0,0.00013842,2]
[333252958,1721987449743,-315.23908,0.00013842,2]
[333252959,1721987449753,-315.23908,0.00013842,2]
[333252960,1721987449763,-151.0,0.00013842,2]
[333252961,1721987449774,-151.0,0.00013842,2]
[333252962,1721987449785,-151.0,0.00013842,2]
[333252963,1721987449796,-151.0,0.00013842,2]
[333252964,1721987449806,-179.68927,0.00013842,2]
[333252965,1721987449816,-151.0,0.00013842,2]
[333252966,1721987449827,-151.0,0.00013842,2]
[333252967,1721987449837,-151.0,0.00013842,2]
[333252968,1721987449846,-151.0,0.00013842,2]
[333252969,1721987449856,-151.0,0.00013842,2]
[333252970,1721987449866,-151.0,0.00013842,2]
[333252971,1721987449876,-151.0,0.00013842,2]
[333252972,1721987449886,-151.0,0.00013842,2]
[333252973,1721987449895,-500.0,0.00013848,2]
[333252974,1721987449908,-500.0,0.00013848,2]
[333252975,1721987449920,-500.0,0.00013849,2]
[333252976,1721987449930,-519.42702461,0.00013849,2]
[333252977,1721987449942,-502.47383564,0.00013849,2]
[333252978,1721987449952,-505.69652042,0.00013849,2]
[333252979,1721987449963,-508.25558177,0.00013849,2]
[333252980,1721987449973,-500.0,0.00013849,2]
[333252981,1721987449983,-500.0,0.00013849,2]
[333252982,1721987449994,-506.16,0.00013849,2]
[333252983,1721987450006,-500.0,0.00013849,2]
[333252984,1721987450015,-500.0,0.00013849,2]
[333252985,1721987450024,-500.0,0.00013849,2]
[333252986,1721987450035,-634.24,0.00013849,2]
[333252987,1721987450044,-500.0,0.00013849,2]
[333252988,1721987450053,-500.0,0.00013849,2]
[333252989,1721987450062,-553.55,0.00013849,2]
[333252990,1721987450074,-500.0,0.00013849,2]
[333252991,1721987450085,-500.0,0.00013849,2]
[333252992,1721987450095,-500.0,0.00013849,2]
[333252993,1721987450107,-500.0,0.00013849,2]
[333252994,1721987450118,-505.97444456,0.00013849,2]
[333252995,1721987450129,-509.80395528,0.00013849,2]
[333252996,1721987450140,-500.0,0.00013849,2]
[333252997,1721987450152,-500.0,0.00013849,2]
[333252998,1721987450163,-500.0,0.00013849,2]
[333252999,1721987450173,-500.0,0.00013849,2]
[333253000,1721987450183,-500.0,0.00013849,2]
[333253001,1721987450193,-500.0,0.00013849,2]
[333253002,1721987450202,-500.0,0.00013849,2]
[333253003,1721987450213,-1031.47,0.00013849,2]
[333253004,1721987450223,-500.0,0.00013849,2]
[333253005,1721987450235,-630.61,0.00013849,2]
[333253006,1721987450247,-504.19036486,0.00013849,2]
[333253007,1721987450258,-504.48662313,0.00013849,2]
[333253008,1721987450269,-500.0,0.00013849,2]
[333253009,1721987450279,-277.20004014,0.00013849,2]
[333253010,1721987450289,-500.0,0.00013849,2]
[333253011,1721987450299,-500.0,0.00013849,2]
[333253012,1721987450308,-866.99,0.00013849,2]
[333253013,1721987450318,-500.0,0.00013849,2]
[333253014,1721987450327,-500.0,0.00013849,2]
[333253015,1721987450336,-762.69,0.00013849,2]
[333253016,1721987450346,-500.0,0.00013849,2]
[333253017,1721987450355,-500.0,0.00013849,2]
[333253018,1721987450365,-500.0,0.00013849,2]
[333253019,1721987450375,-825.83,0.00013849,2]
[333253020,1721987450386,-508.77,0.00013849,2]
[333253021,1721987450396,-500.0,0.00013849,2]
[333253022,1721987450407,-500.0,0.00013849,2]
[333253023,1721987450417,-500.0,0.00013849,2]
[333253024,1721987450428,-500.0,0.00013849,2]
[333253025,1721987450440,-500.0,0.00013849,2]
[333253026,1721987450451,-997.35,0.00013849,2]
[333253027,1721987450463,-500.0,0.00013849,2]
[333253028,1721987450473,-500.0,0.00013849,2]
[333253029,1721987450482,-500.0,0.00013849,2]
[333253030,1721987450493,-500.0,0.00013849,2]
[333253031,1721987450505,-500.0,0.00013849,2]
[333253032,1721987450515,-500.0,0.00013849,2]
[333253033,1721987450526,-500.0,0.00013849,2]
[333253034,1721987450539,-500.0,0.00013849,2]
[333253035,1721987450549,-500.0,0.00013849,2]
[333253036,1721987450560,-500.0,0.00013849,2]
[333253037,1721987450572,-702.32,0.00013849,2]
[333253038,1721987450585,-500.0,0.00013849,2]
[333253039,1721987450595,-500.0,0.00013849,2]
[333253040,1721987450605,-500.0,0.00013849,2]
[333253041,1721987450618,-500.0,0.00013849,2]
[333253042,1721987450628,-516.89597913,0.00013849,2]
[333253043,1721987450639,-500.0,0.00013849,2]
[333253044,1721987450649,-1026.01,0.00013849,2]
[333253045,1721987450659,-500.0,0.00013849,2]
[333253046,1721987450669,-500.0,0.00013849,2]
[333253047,1721987450679,-500.0,0.00013849,2]
[333253048,1721987450688,-501.6976513,0.00013849,2]
[333253049,1721987450698,-500.0,0.00013849,2]
[333253050,1721987450707,-500.0,0.00013849,2]
[333253051,1721987450716,-177.69039988,0.00013849,2]
[333253052,1721987450725,-317.07107395,0.00013849,2]
[333253053,1721987450734,-500.0,0.00013849,2]
[333253054,1721987450744,-151.0,0.00013849,2]
[333253055,1721987450755,-151.0,0.00013849,2]
[333253056,1721987450764,-315.23908,0.00013849,2]
[333253057,1721987450775,-315.23908,0.00013849,2]
[333253058,1721987450784,-154.573958,0.00013849,2]
[333253059,1721987450793,-151.0,0.00013849,2]
[333253060,1721987450802,-151.0,0.0001385,2]
[333253061,1721987450812,-161.353307,0.00013851,2]
[333253062,1721987450821,-191.361717,0.00013851,2]
[333253063,1721987450831,-151.0,0.00013851,2]
[333253064,1721987450840,-151.0,0.00013851,2]
[333253065,1721987450849,-151.0,0.00013851,2]
[333253066,1721987450858,-151.0,0.00013851,2]
[333253067,1721987450868,-175.008127,0.00013851,2]
[333253068,1721987450878,-175.008127,0.00013851,2]
[333253069,1721987450887,-175.008127,0.00013851,2]
[333253070,1721987450897,-175.008127,0.00013851,2]
[333253071,1721987450909,-646.62277809,0.00013851,2]
[333253072,1721987450920,-373.22337155,0.00013852,2]
[333253073,1721987450932,-153176.75077497,0.00013852,2]
[333253074,1721987450943,-7523.67009285,0.00013852,2]
[333253075,1721987450954,-151.0,0.00013852,2]
[333253076,1721987450965,-151.0,0.00013852,2]
[333253077,1721987450975,-175.008127,0.00013852,2]
[333253078,1721987450985,-175.008127,0.00013852,2]
[333253079,1721987450996,-151.0,0.00013852,2]
[333253080,1721987451007,-151.0,0.00013852,2]
[333253081,1721987451017,-238.607116,0.00013852,2]
[333253082,1721987451026,-238.607116,0.00013852,2]
[333253083,1721987451035,-238.607116,0.00013852,2]
[333253084,1721987451043,-238.607116,0.00013852,2]
[333253085,1721987451054,-151.0,0.00013852,2]
[333253086,1721987451068,-194.970975,0.00013852,2]
[333253087,1721987451079,-194.970975,0.00013852,2]
[333253088,1721987451089,-151.0,0.00013852,2]
[333253089,1721987451100,-164.382129,0.00013852,2]
[333253090,1721987451111,-315.23908,0.00013852,2]
[333253091,1721987451121,-151.0,0.00013852,2]
[333253092,1721987451132,-315.23908,0.00013852,2]
[333253093,1721987451142,-151.0,0.00013852,2]
[333253094,1721987451153,-151.0,0.00013852,2]
[333253095,1721987451163,-151.0,0.00013852,2]
[333253096,1721987451172,-151.0,0.00013852,2]
[333253097,1721987451183,-158.829048,0.00013852,2]
[333253098,1721987451192,-151.0,0.00013852,2]
[333253099,1721987451202,-151.26329,0.00013859,2]
[333253100,1721987451215,-500.0,0.0001386,2]
[333253101,1721987451226,-500.0,0.0001386,2]
[333253102,1721987451237,-441.81907341,0.0001386,2]
[333253103,1721987451248,-500.0,0.0001386,2]
[333253104,1721987451260,-157.223811,0.00013861,2]
[333253105,1721987451269,-151.0,0.00013862,2]
[333253106,1721987451280,-153.208445,0.00013862,2]
[333253107,1721987451290,-151.0,0.00013862,2]
[333253108,1721987451303,-500.0,0.0001387,2]
[333253109,1721987451313,-500.0,0.0001387,2]
[333253110,1721987451323,-500.0,0.0001387,2]
[333253111,1721987451333,-500.0,0.0001387,2]
[333253112,1721987451343,-500.0,0.0001387,2]
[333253113,1721987451354,-500.0,0.0001387,2]
[333253114,1721987451364,-500.0,0.0001387,2]
[333253115,1721987451374,-500.0,0.0001387,2]
[333253116,1721987451383,-500.0,0.0001387,2]
[333253117,1721987451394,-500.0,0.0001387,2]
[333253118,1721987451404,-500.0,0.0001387,2]
[333253119,1721987451415,-500.0,0.0001387,2]
[333253120,1721987451425,-500.0,0.0001387,2]
[333253121,1721987451435,-500.0,0.0001387,2]
[333253122,1721987451446,-500.0,0.0001387,2]
[333253123,1721987451457,-500.0,0.0001387,2]
[333253124,1721987451467,-403.82443557,0.0001387,2]
[333253125,1721987451478,-175.008127,0.0001387,2]
[333253126,1721987451490,-175.008127,0.0001387,2]
[333253127,1721987451502,-151.0,0.00013872,2]
[333253128,1721987451513,-218.646936,0.00013872,2]
[333253129,1721987451523,-150.112233,0.000139,2]
[333253130,1721987451533,-150.112233,0.000139,2]
[333253131,1721987451547,-150.112233,0.000139,2]
[333253132,1721987451556,-150.112233,0.000139,2]
[333253133,1721987451567,-150.112233,0.000139,2]
[333253134,1721987451577,-150.112233,0.000139,2]
[333253135,1721987451587,-153.0,0.00013975,2]
[333253136,1721987451598,-153.0,0.00013975,2]
[333253137,1721987451610,-153.0,0.00013975,2]
[333253138,1721987451623,-153.0,0.00013975,2]
[333253139,1721987451635,-153.0,0.00013975,2]
[333253140,1721987451645,-153.0,0.00013975,2]
[333253141,1721987451656,-153.0,0.00013975,2]
[333253142,1721987451665,-153.0,0.00013975,2]
[333253143,1721987451676,-153.0,0.00013975,2]
[333253144,1721987451686,-153.0,0.00013975,2]
[333253145,1721987451697,-153.0,0.00013975,2]
[333253146,1721987451708,-153.0,0.00013975,2]
[333253147,1721987451718,-153.0,0.00013975,2]
[333253148,1721987451729,-153.0,0.00013975,2]
[333253149,1721987451742,-153.0,0.00013975,2]
[333253150,1721987451754,-153.0,0.00013975,2]
[333253151,1721987451765,-150.112233,0.00014,2]
[333253152,1721987451776,-150.112233,0.00014,2]
[333253153,1721987451787,-150.112233,0.00014,2]
[333253154,1721987451798,-150.112233,0.00014,2]
[333253155,1721987451810,-150.112233,0.00014,2]
[333253156,1721987451820,-150.0,0.00014051,2]
[333253157,1721987451832,-505.0,0.00014051,2]
[333253158,1721987451844,-1409.0,0.00014051,2]
[333253159,1721987451854,-150.112233,0.000141,2]
[333253160,1721987451865,-150.112233,0.000141,2]
[333253161,1721987451876,-150.112233,0.000141,2]
[333253162,1721987451888,-150.112233,0.000141,2]
[333253163,1721987451898,-500.0,0.00014104,2]
[333253164,1721987451909,-500.0,0.00014104,2]
[333253165,1721987451919,-500.0,0.00014104,2]
[333253166,1721987451929,-500.0,0.00014104,2]
[333253167,1721987451939,-500.0,0.00014104,2]
[333253168,1721987451949,-500.0,0.00014104,2]
[333253169,1721987451958,-500.0,0.00014104,2]
[333253170,1721987451967,-500.0,0.00014104,2]
[333253171,1721987451977,-500.0,0.00014104,2]
[333253172,1721987451988,-1032.48,0.00014104,2]
[333253173,1721987451998,-1686.25,0.00014104,2]
[333253174,1721987452009,-191.68299004,0.00014104,2]
[333253175,1721987452022,-500.0,0.00014104,2]
[333253176,1721987452031,-921.54,0.00014104,2]
[333253177,1721987452041,-598.45,0.00014104,2]
[333253178,1721987452052,-500.0,0.00014104,2]
[333253179,1721987452061,-967.8,0.00014104,2]
[333253180,1721987452071,-500.0,0.00014104,2]
[333253181,1721987452080,-500.0,0.00014104,2]
[333253182,1721987452090,-500.0,0.00014104,2]
[333253183,1721987452100,-500.0,0.00014104,2]